Cogmind - Beta 14 @@@ ROGUE MODE // 2024.10.04 @ 19:53:21 Player: LEWiKK Result: Destroyed by 73-ZN8(R) with Subdweller Machine Gun Performance ------------- Evolutions (0) 0 Regions Visited (3) 600 Robots Destroyed (21) 105 Value Destroyed (553) 553 Prototype IDs (0) 0 Alien Tech Used (0) 0 Bonus (-69) -69 TOTAL SCORE: 1189 Bonus ------- Follower Combat Kills 60 Friendly Fire -129 Cogmind --------- Core Integrity 0/250 Matter 293/300 Energy 82/100 System Corruption 0% Temperature Cool (0) Movement Walking (120) Location -10/Subcaves Parts ------- > --- POWER (1) -------- (None) > --- PROPULSION (2) --- Aluminum Leg Carbon-fiber Leg > --- UTILITY (2) ------ Large Storage Unit Weight Redist. System > --- WEAPON (2) ------- EM Shotgun Autogun > --- INVENTORY (15) --- Ion Engine Light Treads Aluminum Leg Aluminum Leg Aluminum Leg Aluminum Leg Carbon-fiber Leg EM Shotgun Autogun Autogun Autogun Subdweller Machine Gun Grenade Launcher Hammer Peak State ------------ > --- POWER ------------ Ion Engine > --- PROPULSION ------- Aluminum Leg Carbon-fiber Leg > --- UTILITY ---------- Large Storage Unit Weight Redist. System > --- WEAPON ----------- EM Shotgun Autogun > --- INVENTORY -------- Ion Engine Ion Engine Light Treads Light Treads Aluminum Leg Aluminum Leg Aluminum Leg Aluminum Leg Carbon-fiber Leg EM Shotgun Autogun Autogun Autogun Grenade Launcher Hammer [Rating: 14] Favorites ----------- Power Ion Engine Engine Ion Engine Propulsion Aluminum Leg Leg Aluminum Leg Utility Weight Redist. System Device Weight Redist. System Storage Large Storage Unit Weapon Autogun Energy Gun EM Shotgun Ballistic Gun Autogun Impact Weapon Hammer Build | -11 -10 -10 -10 ------- Run | Yrd Mat Min Sub Slots Evolved . | . . . . Power . | . . . . Propulsion . | . . . . Utility . | . . . . Weapon . | . . . . Parts Attached 9 | . 5 2 2 Power . | . . . . Engine . | . . . . Core . | . . . . Reactor . | . . . . Propulsion 2 | . . 2 . Treads . | . . . . Leg 2 | . . 2 . Wheel . | . . . . Hover . | . . . . Flight . | . . . . Utility 3 | . 3 . . Device 1 | . 1 . . Storage 2 | . 2 . . Processor . | . . . . Hackware . | . . . . Protection . | . . . . Artifact . | . . . . Weapon 4 | . 2 . 2 Energy Gun 2 | . 1 . 1 Energy Cannon . | . . . . Ballistic Gun 1 | . 1 . . Ballistic Cannon . | . . . . Launcher . | . . . . Special Weapon . | . . . . Impact Weapon 1 | . . . 1 Slashing Weapon . | . . . . Piercing Weapon . | . . . . Special Melee Weapon . | . . . . Unidentified Prototypes . | . . . . Parts Lost 1 | . . . 1 Power 1 | . . . 1 Propulsion . | . . . . Utility . | . . . . Weapon . | . . . . Highest Loss Streak 1 | . . . 1 To Critical Strikes . | . . . . Average Slot Usage (%) 98 | . 96 100 99 Engine 13 | . 14 14 13 Leg 28 | . 28 28 28 Device 12 | . 11 14 14 Storage 14 | . 14 14 14 Energy Gun 13 | . 13 14 11 Ballistic Gun 14 | . 14 14 14 Peak Build Rating 14 | . 11 14 14 Average Rating 11 | . 10 11 13 On Entrance 9 | 6 6 11 14 Naked Turns . | . . . . Heaviest Build 31 | 14 31 31 31 Greatest Support 31 | 20 26 31 31 Greatest Overweight (x) 1 | . 1 1 . Average Overweight (x) . | . . . . Largest Inventory Capacity 15 | . 15 15 15 Average Capacity 14 | . 13 15 15 Most Carried 15 | . 12 15 15 Average Carried 12 | . 10 12 14 Final Capacity 15 | 8 15 15 15 Final Carried 15 | 6 12 15 14 Class Distribution -------------------- 100% | Mutant Dominant Class ---------------- Mutant | -10/Materials Mutant | -10/Mines Mutant | -10/Subcaves Resources | -11 -10 -10 -10 ----------- Run | Yrd Mat Min Sub Matter Collected 475 | 200 131 60 84 Remotely . | . . . . Salvage Created 924 | . 445 153 326 Parts 52 | . 31 8 13 Haulers Intercepted . | . . . . Recyclers Shooed . | . . . . Parts Field Recycled . | . . . . Retrieved Matter . | . . . . Parts Self-Destructed 5 | . . . 5 Prevented . | . . . . Kills | -11 -10 -10 -10 ------- Run | Yrd Mat Min Sub Combat Hostiles Destroyed 19 | . 13 3 3 Guns 17 | . 11 3 3 AOE 2 | . 2 . . Classes Destroyed 4 | . 3 . 1 Recycler 1 | . 1 . . Swarmer 6 | . 6 . . Grunt 13 | . 7 3 3 Subdweller 1 | . . . 1 Best Kill Streak 3 | . 3 2 2 Combat Bots Only 3 | . 3 2 2 Max Kills in Single Turn 2 | . 2 1 1 Gunslinging . | . . . . Exploded 2 | . 2 . . Melee . | . . . . Uniques/NPCs Destroyed . | . . . . Combat | -11 -10 -10 -10 -------- Run | Yrd Mat Min Sub Hostile Shots Fired 81 | . 39 16 26 Missed 22 | . 9 5 8 Damage Taken 784 | . 315 137 332 Core 251 | . 52 49 150 Absorbed by Shields . | . . . . Regen/Repaired (Parts) 22 | . 22 . . Core Remaining (%) 100 | 100 . . . Volleys Fired 52 | . 23 10 19 Largest 2 | . 2 2 2 Hottest 68 | . 68 68 68 Shots Fired 95 | . 43 17 35 Gun 95 | . 43 17 35 Cannon . | . . . . Launcher . | . . . . Special . | . . . . Kinetic 52 | . 23 10 19 Thermal . | . . . . Explosive . | . . . . Electromagnetic 43 | . 20 7 16 Robot Hit Streak 8 | . 8 3 8 Robot Miss Streak 4 | . 3 2 4 Penetration Max . | . . . . Secondary Targets 2 | . 2 . . Max Gunslinging Chain 1 | . 1 . . Shots Hit Robots 68 | . 25 13 30 Core Hits 40 | . 19 8 13 Critical Kills . | . . . . Critical Parts Destroyed 1 | . . 1 . Critical Strikes 2 | . 1 1 . Destroy 1 | . . 1 . Corrupt 1 | . 1 . . Melee Attacks 3 | . . . 3 Impact 3 | . . . 3 Slashing . | . . . . Piercing . | . . . . Sneak Attacks . | . . . . Combat Hostiles . | . . . . Follow-up Attacks . | . . . . Damage Inflicted 1185 | . 437 187 561 Guns 919 | . 329 187 403 Cannons . | . . . . Explosions 85 | . 85 . . Melee 158 | . . . 158 Ramming 23 | . 23 . . Kinetic 471 | . 168 102 201 Thermal 85 | . 85 . . Explosive . | . . . . Electromagnetic 448 | . 161 85 202 Impact 158 | . . . 158 Slashing . | . . . . Piercing . | . . . . Highest Corruption . | . . . . Average Corruption . | . . . . Corruption Purged . | . . . . Corruption Blocked . | . . . . Overload Shots . | . . . . Overflow Damage 8 | . . . 8 Projectiles . | . . . . Explosions . | . . . . Melee 8 | . . . 8 Knockbacks . | . . . . Impact . | . . . . Kinetic . | . . . . Secondary . | . . . . Self-Inflicted Damage . | . . . . Shots . | . . . . Rammed . | . . . . Targets Rammed 4 | . 4 . . Kicked 4 | . 4 . . Crushed . | . . . . Highest Temperature 101 | . 90 101 3 Average Temperature 35 | . 34 39 3 Received Heat Transfer 300 | . 129 81 90 Siege Activations . | . . . . Robots Corrupted 1 | . . . 1 Combat Hostiles 1 | . . . 1 Parts Fried 2 | . . . 2 Impact Corruptions 1 | . . . 1 Robots Melted . | . . . . Combat Hostiles . | . . . . Parts Melted . | . . . . Heat Transferred 50 | . 50 . . Parts Sabotaged . | . . . . Parts Stolen . | . . . . Parts Stripped . | . . . . Power Chain Reactions 1 | . 1 . . Alert | -11 -10 -10 -10 ------- Run | Yrd Mat Min Sub Peak Influence 215 | . 215 114 . Initial 83 | . . 83 . Average 101 | . 136 67 . Maximum Alert Level 1 | . 1 . . Low Security (%) 95 | . 90 100 . Level 1 4 | . 9 . . Level 2 . | . . . . Level 3 . | . . . . Level 4 . | . . . . Level 5 . | . . . . High Security . | . . . . Max Security . | . . . . Squads Dispatched 3 | . 3 . . Investigation 1 | . 1 . . Extermination . | . . . . Reinforcement 2 | . 2 . . Assault . | . . . . Garrison . | . . . . Intercept . | . . . . Searches Triggered . | . . . . Construction Impeded . | . . . . Haulers Reinforced . | . . . . Active Scanning Responses . | . . . . Cargo Convoy Interrupts . | . . . . Stealth | -11 -10 -10 -10 --------- Run | Yrd Mat Min Sub Distress Signals 5 | . 5 . . Communications Jammed . | . . . . Distress Signals . | . . . . Times Spotted 33 | . 24 4 5 Peak Tracking Total 5 | . 5 2 2 Tactical Retreats . | . . . . Traps | -11 -10 -10 -10 ------- Run | Yrd Mat Min Sub Traps Triggered . | . . . . Indirectly . | . . . . Trap Hack Attempts . | . . . . Triggered . | . . . . Disarmed . | . . . . Reprogrammed . | . . . . Reused . | . . . . Traps Extracted . | . . . . Installed . | . . . . Triggered . | . . . . Machines | -11 -10 -10 -10 ---------- Run | Yrd Mat Min Sub Machines Disabled . | . . . . Max in Single Turn . | . . . . Machines Repaired . | . . . . Machines Dismantled . | . . . . Machines Sabotaged . | . . . . Overloaded Fab Kills . | . . . . Hacking | -11 -10 -10 -10 --------- Run | Yrd Mat Min Sub Machines Accessed 5 | . 4 1 . Terminals 4 | . 3 1 . Fabricators . | . . . . Repair Stations 1 | . 1 . . Recycling Units . | . . . . Scanalyzers . | . . . . Garrison Access . | . . . . Total Hacks 13 | . 11 2 . Successful 11 | . 9 2 . Failed 2 | . 2 . . Catastrophic . | . . . . Database Lockouts . | . . . . Manual 10 | . 9 1 . Terminals 12 | . 10 2 . Fabricators . | . . . . Repair Stations 1 | . 1 . . Recycling Units . | . . . . Scanalyzers . | . . . . Garrison Access . | . . . . Terminal Hacks 6 | . 5 1 . Robot Analysis 2 | . 2 . . Locate Traps 1 | . 1 . . Hauler Manifests 1 | . 1 . . Registered Components 1 | . 1 . . Zone Layout 1 | . . 1 . Fabricator Hacks . | . . . . Repair Station Hacks . | . . . . Recycling Unit Hacks . | . . . . Scanalyzer . | . . . . Garrison Access Hacks . | . . . . Unauthorized Hacks 5 | . 4 1 . Terminals 4 | . 3 1 . Botnet 4 | . 3 1 . Fabricators . | . . . . Repair Stations 1 | . 1 . . Patch 1 | . 1 . . Recycling Units . | . . . . Scanalyzers . | . . . . Garrison Access . | . . . . Data Cores Recovered . | . . . . Used . | . . . . Hacking Detections 4 | . 3 1 . Full Trace Events . | . . . . Feedback Events . | . . . . Feedback Blocked . | . . . . Robot Schematics Acquired . | . . . . Robots Built . | . . . . Authchips . | . . . . Time . | . . . . Total Robot Build Rating . | . . . . Part Schematics Acquired . | . . . . Parts Built . | . . . . Authchips . | . . . . Time . | . . . . Total Part Build Rating . | . . . . Parts Repaired . | . . . . Time . | . . . . Parts Recycled . | . . . . Recycled Matter . | . . . . Retrieved Matter . | . . . . Retrieved Components . | . . . . Parts Scanalyzed . | . . . . Part Schematics Acquired . | . . . . Parts Damaged . | . . . . Bothacking | -11 -10 -10 -10 ------------ Run | Yrd Mat Min Sub Used RIF Installer . | . . . . Robots Hacked . | . . . . Non-combat . | . . . . Combat . | . . . . Robot Hacks Applied . | . . . . Relay Couplers Released . | . . . . Fabnet Peak Effective % . | . . . . Robots Rewired . | . . . . Allies Hacked . | . . . . Hacks Repelled . | . . . . Allies | -11 -10 -10 -10 -------- Run | Yrd Mat Min Sub Total Allies 4 | . . 4 . Largest Group 4 | . . 4 1 Highest-Rated Group 71 | . . 71 16 Highest-Rated Ally 31 | . . 31 16 Total Orders . | . . . . Ally Attacks 19 | . . 14 5 Total Damage 194 | . . 165 29 Kills 3 | . . 3 . Allies Corrupted . | . . . . Allies Melted . | . . . . Intel | -11 -10 -10 -10 ------- Run | Yrd Mat Min Sub Robot Analysis Total 2 | . 2 . . Derelict Logs Recovered 2 | . . 1 1 Drone Launches . | . . . . Drone Recoveries . | . . . . Exploration | -11 -10 -10 -10 ------------- Run | Yrd Mat Min Sub Turns Passed 1759 | . 682 711 366 Spaces Moved 955 | 1 343 367 244 Core . | . . . . Treads . | . . . . Legs 955 | 1 343 367 244 Wheels . | . . . . Hover . | . . . . Flight . | . . . . Fastest Speed 120 | 120 120 120 120 Average Speed 163 | 120 170 185 120 Slowest Speed 190 | 120 190 190 120 Overloaded Moves . | . . . . Propulsion Burnouts . | . . . . Robots Hopped . | . . . . Cave-ins Triggered . | . . . . Exploration Rate (%) 39 | 2 45 86 23 Regions Visited 3 Branch Regions 2 Pre-discovered Areas 1 | . . 1 . Known Exits Taken . | . . . . Unknown Exits Taken 3 | 1 1 1 . Scrap Searched 4 | . . 2 2 Spaces Dug . | . . . . Terrain Destroyed 5 | . 5 . . Melee . | . . . . Projectile . | . . . . AOE 5 | . 5 . . Terrain Rammed . | . . . . Walls Destroyed . | . . . . Machines Disabled . | . . . . Actions | -11 -10 -10 -10 --------- Run | Yrd Mat Min Sub Total 1062 | . 401 381 280 Wait 15 | . 4 2 9 Move 952 | . 342 366 244 Hop . | . . . . Pick Up 14 | . 12 1 1 Fast Attach 3 | . 3 . . Attach . | . . . . Detach 1 | . 1 . . Swap 6 | . 2 2 2 Drop 12 | . 10 . 2 Fire 52 | . 23 10 19 Melee 3 | . . . 3 Ram . | . . . . Kick 4 | . 4 . . Crush . | . . . . Escape Stasis . | . . . . Rewire . | . . . . Trap . | . . . . Miscellaneous . | . . . . Route ------- -11/Scrapyard -10/Materials (discovered 2 exits: [*Mat] / *Min) -10/Mines (discovered 3 exits: [*Mat x2] / [*Sub]) -10/Subcaves (discovered 1 exit: [*Mat]) History --------- Turn | Location | Event 1 | -11/Scrapyard | Discovered new exit (range 0) 1 | -11/Scrapyard | Entered Materials 271 | -10/Materials | Discovered new exit (range 7) 313 | -10/Materials | Build established: Mutant 484 | -10/Materials | Discovered new exit (range 8) 683 | -10/Materials | Entered Mines 696 | -10/Mines | Met a Derelict bent on vengeance 792 | -10/Mines | Learned location of Zion (-6) 805 | -10/Mines | Discovered new exit (range 5) 808 | -10/Mines | Received a Mining Laser from a helpful Derelict 932 | -10/Mines | Discovered new exit (range 4) 1060 | -10/Mines | Excavation squad dispatched 1060 | -10/Mines | A large section of the Mines collapsed 1144 | -10/Mines | Assisted by bots powering up and referring to "LRC-V3" 1386 | -10/Mines | Discovered new exit (range 3) 1394 | -10/Mines | Entered Subcaves 1394 | -10/Subcaves | Accompanied by 2 allies 1521 | -10/Subcaves | Shifting Twisted Machinery released Sub. Laser 1527 | -10/Subcaves | Learned 2 Materials zone layouts 1683 | -10/Subcaves | Core integrity fell below 50% 1708 | -10/Subcaves | Discovered new exit (range 6) 1753 | -10/Subcaves | Disturbed a concealed Subdweller 1753 | -10/Subcaves | Core integrity fell below 20% 1760 | -10/Subcaves | Destroyed by 73-ZN8(R) with Subdweller Machine Gun Last Messages --------------- Ion Engine fries itself beyond repair. Heat Sink fries itself beyond repair. G-47 Trooper destroyed. Acquired 44 matter. 1J-P7U(R) destroyed. Acquired 8 matter. EXIT=FOUND Searching scrap... Found Sub. Monowheel. Found 45 Matter. Searching scrap... Found Sub. Machine Gun. Found Piercing Trap. Found 63 Matter. Dropped Lgt. Treads. Acquired Sub. Machine Gun. 73-ZN8(R) angrily emerges from the Twisted Machinery. Ion Engine destroyed. Dropped Ion Engine. Map ----- +----------------------------------------------------+ | ??????????????# #### ##?## ## #### | | ??????????????# ### #??##?###?##% % | | ??????????????# # ##????????# ## #%# | | ??????????????# & = %##???????# ## # | | ??????????????# !&= ###?????## % | | ??????????????# " & [%& #?????# % | | ??????????????# & &"### #????#### #### | | ??????????????#& = " "#??# #???????###??# | | ??????????????# &# " #???####????????????## | | ??????????????## #????????????????????# | | ???????????????### ##???????????????????# | | ?????????????????## ##??????????????????? | | ??????????????????## % #??????????????????? | | ???????????????????######??????????????????? | | ???????????????????????????????????????????? | | ???????????????????????????????????????????? | | ???????????????????????????????????????????? | | ???????????????????????????????????????????? | | ???????????????????????????????????????????? | | ???????????????????????????????????????????? | | ???????????????????????????????????????????? | | ???????????????????????????????????????????? | | ??????????????????#######??????????????????? | | ??????????????????#<=% "#??????????????????? | | ??????????????????#R##&%#??????????????????? | | ??????????????????#@&####??????????????????? | | ??????????????????##R<###??????????????????? | | ??????????????????## ## #??????????????????? | | ???????????????####" < #??????????????????? | | ???????????????# ##?????????????????? | | ???????????????## #?????????????????? | | ????????????????#### #?????????????????? | | ????????????????##### #????????????????## | | ????????????????# # #???????????????## | | ????????????????## ##???????????????# | | ????????????????## ## ##????????????????# | | ????????????????# # #?????????????????# | | ????????????????## ## ##????????????????# | | ???????????????## # #???#######?????## | | ??????????????## #???## ##????# | | ??????????????# < ##??## #????## | | ??????????????#### ###???#* #####?# | | ????????????????## #?????#&& ## ### | | ????????????????# #???###%&### ## | | ???????????????## #??## =###?# ## | | ???????????????# ##?## #???# ## | | ???????????????# ### % ##??# ### ### | | ???????????????# "" %%" "##?## #???#?# | | ???????????????#" """" " # ## ##????# | | ??????????????#" "## " #??### | +----------------------------------------------------+ Best States ------------- Heat Dissipation 25 Energy Generation 10 Energy Capacity 250 Matter Stores 300 Matter Capacity 300 Sight Range 16 Terrain Scan Density 10 Additional Mass Support 6 Evasion (%) 55 Item Schematics ----------------- None Robot Schematics ------------------ None Fabricated ------------ Nothing Alien Tech Used ----------------- None Achievements -------------- None Challenges ------------ None Game ------ Seed ArmoredConstructInitializer Manual? 0 Play Time 00:14:37 Cumulative 70.0 hours Start 2024.10.04 @ 19:38:46 End 2024.10.04 @ 19:53:21 Sessions 1 Manual Loads 0 Difficulty Rogue Special Mode None Game No. 73 Rogue 73 Adventurer 0 Explorer 0 Win Type - Total 2 Types 1/0/0/1/0/0/0/0/0 Lore% 50 Gallery% 42 Achievement% 41 Wizard Run 0 Options --------- Layout 1 ASCII 0 Keyboard 1 Movement Numpad Keybinds 0 Fullscreen 2 Font 20/SmallcapsGlow Map View 54x42 Zoom Use 0% Tactical HUD 0 Map Filters NONE Filters NONE Steam 1 RUN: f01eebb3-bab7-4142-97b6-9a883bbe2614